bitfinex/quotes_SOLUSD_20250317
["timestamp","ask_amount","ask_price","bid_price","bid_amount"]
[1742220833100,20.063,127.31,127.29,15.08989388]
[1742220833295,28.72648937,127.31,127.29,15.08989388]
[1742220833521,20.0,127.3,127.29,22.94559388]
[1742220833896,0.063,127.31,127.29,22.94559388]
[1742220835298,0.063,127.31,127.29,22.94559388]
[1742220836792,0.063,127.31,127.29,51.60908325]
[1742220837304,0.063,127.31,127.29,22.94559388]
[1742220838803,0.063,127.31,127.3,8.42404628]
[1742220839003,0.063,127.31,127.3,23.51394016]
[1742220839205,0.063,127.31,127.3,22.94529388]
[1742220840215,0.063,127.31,127.3,23.51394016]
[1742220840434,0.063,127.31,127.3,52.17742953]
[1742220840604,0.063,127.31,127.3,23.51394016]
[1742220840804,0.063,127.31,127.3,22.94529388]
[1742220841399,0.063,127.31,127.3,158.19534231]
[1742220841612,0.0001,127.31,127.3,176.84499117]
[1742220842015,0.03,127.34,127.32,0.56864628]
[1742220842326,0.03,127.34,127.33,0.56864628]
[1742220842697,0.03,127.34,127.33,8.42224628]
[1742220842897,239.5096556,127.35,127.33,185.58309117]
[1742220843210,117.6142556,127.35,127.34,28.66348937]
[1742220843412,13.3821556,127.35,127.34,160.42409729]
[1742220843605,203.4974112,127.38,127.35,19.21829514]
[1742220843810,203.4974112,127.38,127.37,29.23213565]
[1742220844012,203.4974112,127.38,127.36,8.76]
[1742220844335,203.4974112,127.38,127.36,28.66348937]
[1742220844822,203.4974112,127.38,127.37,29.23213565]
[1742220845030,203.4974112,127.38,127.37,7.8511]
[1742220845396,203.4974112,127.38,127.36,157.7648576]
[1742220846039,203.4974112,127.38,127.36,15.08979388]
[1742220846612,203.4974112,127.38,127.37,29.08997408]
[1742220846822,203.4974112,127.38,127.37,29.23213565]
[1742220847122,203.4974112,127.38,127.37,15.65844016]
[1742220847298,203.4974112,127.38,127.37,15.08979388]
[1742220847705,203.4974112,127.38,127.35,15.08979388]
[1742220847909,203.4974112,127.38,127.35,40.82724561]
[1742220848721,203.4974112,127.38,127.35,22.94199388]
[1742220849228,203.4974112,127.38,127.37,5.36794124]
[1742220849607,203.4974112,127.38,127.37,13.21904124]
[1742220849807,203.4974112,127.38,127.37,46.76263313]
[1742220850421,203.4974112,127.38,127.37,22.94089388]
[1742220850624,203.4974112,127.38,127.37,15.08979388]
[1742220850824,203.4974112,127.38,127.37,22.94089388]
[1742220851427,203.4974112,127.38,127.37,15.08979388]
[1742220851625,221.38256293,127.38,127.37,15.08979388]
[1742220852813,203.4974112,127.38,127.37,15.08979388]
[1742220853007,221.38256293,127.38,127.37,15.08979388]
[1742220853328,232.13896718,127.38,127.37,15.08979388]
[1742220854713,203.4974112,127.38,127.37,15.08979388]
[1742220855036,232.13896718,127.38,127.37,15.08979388]
[1742220855336,232.13896718,127.38,127.35,106.01791278]
[1742220855337,232.13896718,127.38,127.34,22.94249388]
[1742220855519,28.64155598,127.37,127.34,22.94249388]
[1742220855913,203.4974112,127.38,127.36,28.64155598]
[1742220856232,203.4974112,127.38,127.37,29.21020226]
[1742220856431,203.4974112,127.38,127.37,44.29999614]
[1742220857318,203.4974112,127.38,127.37,52.15109614]
[1742220857726,117.6830112,127.38,127.37,70.800745]
[1742220857929,72.0930112,127.38,127.37,70.800745]
[1742220858232,72.0930112,127.38,127.37,52.15109614]
[1742220858816,1.732e-05,127.39,127.38,0.28432314]
[1742220859022,1.732e-05,127.39,127.38,153.8777639]
[1742220859424,1.732e-05,127.39,127.38,161.7282639]
[1742220860534,1.732e-05,127.39,127.38,167.8252639]
[1742220860736,3.562e-05,127.41,127.4,47.85985112]
[1742220860942,3.562e-05,127.41,127.4,56.41985112]
[1742220861429,3.562e-05,127.41,127.4,64.26905112]
[1742220861838,3.562e-05,127.41,127.4,170.2869639]
[1742220862042,3.562e-05,127.41,127.4,198.92851988]
[1742220862244,3.562e-05,127.41,127.4,170.2869639]
[1742220863549,3.562e-05,127.41,127.4,198.92851988]
[1742220864052,3.562e-05,127.41,127.4,170.14480233]
[1742220864434,3.562e-05,127.41,127.4,170.2869639]
[1742220864628,3.562e-05,127.41,127.4,151.49515347]
[1742220864835,3.562e-05,127.41,127.4,122.85359749]
[1742220865028,3.562e-05,127.41,127.4,151.63731504]
[1742220865855,3.562e-05,127.41,127.4,170.2869639]
[1742220866351,3.562e-05,127.41,127.4,198.92851988]
[1742220867332,3.562e-05,127.41,127.4,170.2869639]
[1742220868582,3.562e-05,127.41,127.4,114.43575906]
[1742220868866,3.562e-05,127.41,127.4,194.95143592]
[1742220869027,3.562e-05,127.41,127.4,223.87731504]
[1742220869466,0.063,127.44,127.42,0.56864628]
[1742220869665,0.063,127.44,127.43,28.64155598]
[1742220869841,0.063,127.44,127.43,215.45943314]
[1742220870037,0.063,127.44,127.43,186.81787716]
[1742220870344,0.063,127.44,127.43,187.38652344]
[1742220870533,0.063,127.44,127.43,223.87547942]
[1742220870728,0.063,127.44,127.43,242.52512828]
[1742220871335,0.063,127.45,127.43,242.52512828]
[1742220871533,0.063,127.45,127.44,28.64155598]
[1742220871742,0.063,127.45,127.44,215.45943314]
[1742220872544,0.0001,127.45,127.44,242.52452828]
[1742220872958,0.03,127.51,127.46,18.64964886]
[1742220873160,0.03,127.51,127.49,0.56864628]
[1742220873355,0.03,127.51,127.49,216.02807942]
[1742220873580,0.03,127.51,127.49,81.08428752]
[1742220873941,28.64155598,127.5,127.49,80.79996438]
[1742220874552,28.64155598,127.5,127.47,80.79996438]
[1742220874747,28.64155598,127.48,127.47,80.79996438]
[1742220875363,57.28311196,127.48,127.44,80.79996438]
[1742220875552,28.64155598,127.45,127.44,80.79996438]
[1742220875758,28.64155598,127.45,127.41,186.81787716]
[1742220876062,28.64155598,127.44,127.41,80.79996438]
[1742220876660,28.64155598,127.43,127.41,80.79996438]
[1742220878058,28.64155598,127.42,127.41,80.79996438]
[1742220878966,28.64155598,127.4,127.39,80.79996438]
[1742220879261,28.64155598,127.41,127.39,80.79996438]
[1742220879840,28.64155598,127.42,127.39,88.64976438]
[1742220880648,16.2262,127.45,127.39,88.64976438]
[1742220880865,28.64155598,127.41,127.39,80.79996438]
[1742220881364,28.64155598,127.41,127.37,88.71376438]
[1742220881556,28.64155598,127.4,127.37,80.86296438]
[1742220881744,28.64155598,127.39,127.37,80.86296438]
[1742220881944,28.64155598,127.38,127.37,80.86296438]
[1742220882849,28.64155598,127.39,127.37,80.86296438]
[1742220883145,20.0,127.38,127.37,80.86296438]
[1742220883549,48.64155598,127.38,127.37,80.86296438]
[1742220883751,48.64155598,127.38,127.37,0.063]
[1742220884461,68.87810484,127.38,127.32,80.79996438]
[1742220884664,28.64155598,127.34,127.32,80.79996438]
[1742220885762,20.0,127.34,127.32,88.65406438]
[1742220885944,36.96155598,127.37,127.32,117.29562036]
[1742220886146,30.22845598,127.38,127.34,0.28432314]
[1742220886356,20.0,127.36,127.35,0.28432314]
[1742220886557,28.64155598,127.39,127.35,0.28432314]
[1742220886558,20.0,127.37,127.36,7.8517]
[1742220886752,20.0,127.37,127.36,88.65166438]
[1742220886972,20.0,127.37,127.36,80.79996438]
[1742220887260,56.94155598,127.37,127.36,80.79996438]
[1742220887866,56.94155598,127.37,127.33,7.8534]
[1742220888073,28.64155598,127.34,127.33,80.79996438]
[1742220889647,28.64155598,127.34,127.33,88.65356438]
[1742220889845,28.64155598,127.34,127.33,80.79996438]
[1742220890451,28.64155598,127.35,127.33,88.65356438]
[1742220891357,28.64155598,127.34,127.33,80.79996438]
[1742220892256,28.64155598,127.35,127.33,80.79996438]
[1742220892444,28.64155598,127.35,127.33,88.65356438]
[1742220892877,28.64155598,127.34,127.33,80.79996438]
[1742220893060,28.64155598,127.34,127.3,186.81787716]
[1742220893670,28.64155598,127.34,127.3,194.67307716]
[1742220893865,20.0,127.32,127.3,194.67307716]
[1742220894074,8.3,127.37,127.31,29.21020226]
[1742220894240,20.0,127.33,127.31,110.01016664]
[1742220894446,20.0,127.33,127.31,109.7258435]
[1742220894863,20.0,127.33,127.32,7.8542]
[1742220895066,20.0,127.33,127.32,88.65416438]
[1742220895451,20.0,127.33,127.32,108.28966438]
[1742220896049,20.0,127.34,127.33,0.56864628]
[1742220896373,20.0,127.35,127.33,28.92587912]
[1742220896955,8.2,127.4,127.34,56.41117912]
[1742220896956,28.64155598,127.39,127.34,56.41117912]
[1742220897175,36.84155598,127.4,127.35,0.56864628]
[1742220897369,8.2,127.42,127.36,28.64155598]
[1742220897572,28.64155598,127.41,127.36,109.44152036]
[1742220897867,28.64155598,127.41,127.37,0.56864628]
[1742220898070,6.32091229,127.45,127.38,28.64155598]
[1742220898266,28.64155598,127.43,127.38,109.44152036]
[1742220898467,20.0,127.37,127.35,80.79996438]
[1742220898652,0.03,127.37,127.35,80.79996438]
[1742220899053,20.03,127.37,127.36,7.8517]
[1742220899266,20.03,127.37,127.36,88.65166438]
[1742220899975,20.03,127.37,127.36,89.22031066]
[1742220900370,0.03,127.37,127.36,117.71970507]
[1742220900578,28.67155598,127.47,127.36,137.49116664]
[1742220900760,20.0,127.4,127.38,0.56864628]
[1742220900962,48.64155598,127.4,127.38,80.79996438]
[1742220901164,48.64155598,127.4,127.36,7.8514]
[1742220901165,28.64155598,127.39,127.36,7.8514]
[1742220901373,20.0,127.38,127.36,7.8514]
[1742220902351,48.64155598,127.37,127.36,80.79996438]
[1742220903073,56.49265598,127.37,127.36,80.79996438]
[1742220903461,56.49265598,127.37,127.32,178.25787716]
[1742220903676,28.64155598,127.33,127.32,72.23996438]
[1742220904581,20.0,127.34,127.32,72.23996438]
[1742220904768,48.64155598,127.37,127.32,100.88152036]
[1742220905085,20.0,127.37,127.34,0.56864628]
[1742220905262,28.64155598,127.38,127.34,0.56864628]
[1742220905588,28.64155598,127.38,127.34,72.80861066]
[1742220906280,38.06915598,127.4,127.34,72.23996438]
[1742220906458,28.64155598,127.36,127.34,72.23996438]
[1742220906958,28.64155598,127.35,127.34,72.23996438]
[1742220907483,20.0,127.35,127.34,80.66151066]
[1742220907669,20.0,127.36,127.34,100.29391066]
[1742220907865,20.0,127.35,127.34,100.29391066]
[1742220908065,28.64155598,127.36,127.34,80.09286438]
[1742220908271,48.64155598,127.37,127.34,80.09286438]
[1742220908782,28.64155598,127.36,127.34,80.09286438]
[1742220909177,48.64155598,127.35,127.34,72.23996438]
[1742220909379,20.0,127.35,127.33,7.8534]
[1742220909560,28.64155598,127.38,127.34,0.42648471]
[1742220909762,18.64964886,127.43,127.35,28.78371755]
[1742220909981,28.64155598,127.41,127.35,101.02368193]
[1742220910281,28.64155598,127.39,127.35,72.38212595]
[1742220910482,28.64155598,127.38,127.35,72.38212595]
[1742220910678,48.64155598,127.4,127.35,72.44512595]
[1742220910860,28.64155598,127.39,127.35,72.44512595]
[1742220911060,0.03,127.4,127.35,72.44512595]
[1742220911061,28.64155598,127.37,127.35,80.15516438]
[1742220911279,28.64155598,127.37,127.35,72.30296438]
[1742220911680,48.64155598,127.36,127.35,72.30296438]
[1742220911993,20.0,127.36,127.35,7.9153]
[1742220912175,48.64155598,127.36,127.35,0.063]
[1742220913086,28.64155598,127.36,127.35,0.063]
[1742220914885,20.0,127.33,127.31,72.30296438]
[1742220915076,28.64155598,127.32,127.31,0.063]
[1742220917584,20.0,127.32,127.31,0.063]
[1742220918783,28.64155598,127.32,127.31,0.063]
[1742220919375,28.64155598,127.33,127.31,0.063]
[1742220920084,28.64155598,127.32,127.31,0.063]
[1742220921789,20.0,127.34,127.31,0.063]
[1742220922286,28.64155598,127.34,127.31,0.063]
[1742220922487,20.0,127.32,127.31,0.063]
[1742220923776,0.03,127.36,127.31,0.063]
[1742220923978,28.64155598,127.33,127.31,72.30296438]
[1742220924170,0.03,127.36,127.31,72.30296438]
[1742220924171,28.64155598,127.32,127.31,72.30296438]
[1742220924563,28.64155598,127.33,127.31,72.30296438]
[1742220924764,48.64155598,127.34,127.31,72.30296438]
[1742220925285,20.0,127.32,127.31,72.30296438]
[1742220925677,20.0,127.32,127.31,80.15776438]
[1742220926984,0.03,127.36,127.31,99.79486438]
[1742220927178,28.67155598,127.36,127.31,128.43642036]
[1742220927375,0.03,127.36,127.33,28.64155598]
[1742220927573,20.0,127.35,127.34,7.8529]
[1742220927768,0.03,127.36,127.34,80.09286438]
[1742220927969,0.03,127.36,127.35,29.21020226]
[1742220928788,0.03,127.36,127.35,207.46807942]
[1742220928986,0.03,127.36,127.35,178.25787716]
[1742220929583,28.67155598,127.36,127.32,72.23996438]
[1742220929889,48.64155598,127.33,127.32,72.23996438]
[1742220930473,20.0,127.33,127.32,72.23996438]
[1742220930686,48.64155598,127.33,127.31,0.063]
[1742220930870,48.64155598,127.33,127.31,7.9176]
[1742220931075,48.64155598,127.34,127.31,7.9176]
[1742220931291,20.0,127.32,127.31,7.9176]
[1742220931792,28.64155598,127.32,127.31,72.30296438]
[1742220932193,36.49575598,127.32,127.31,72.30296438]
[1742220932509,41.18901922,127.32,127.31,0.063]
[1742220933177,33.33481922,127.32,127.31,0.063]
[1742220933601,41.18901922,127.32,127.31,0.063]
[1742220934098,33.33481922,127.32,127.31,0.063]
[1742220934275,4.69326324,127.32,127.31,0.063]
[1742220934592,24.69326324,127.32,127.31,0.063]
[1742220934814,4.69326324,127.32,127.31,0.063]
[1742220935093,24.69326324,127.32,127.31,0.063]
[1742220935480,24.69326324,127.32,127.31,72.30296438]
[1742220935682,4.69326324,127.32,127.31,109.36796664]
[1742220936185,4.69326324,127.32,127.31,80.72641066]
[1742220936787,4.69326324,127.32,127.31,80.15776438]
[1742220937106,53.33481922,127.32,127.31,0.063]
[1742220937992,61.18901922,127.32,127.31,0.063]
[1742220939394,53.33481922,127.32,127.31,0.063]
[1742220939779,61.18901922,127.32,127.31,0.063]
[1742220939984,53.33481922,127.32,127.31,0.063]
[1742220941804,24.69326324,127.32,127.31,0.063]
[1742220942018,53.33481922,127.32,127.31,0.063]
[1742220942215,4.69326324,127.32,127.31,0.063]
[1742220942384,71.98446808,127.32,127.28,72.23996438]
[1742220942713,28.64155598,127.29,127.27,0.063]
[1742220942898,28.64155598,127.28,127.27,0.063]
[1742220943206,33.33481922,127.28,127.27,0.063]
[1742220944207,4.69326324,127.28,127.27,0.063]
[1742220944597,24.69326324,127.28,127.27,0.063]
[1742220944808,24.69326324,127.28,127.27,28.70455598]
[1742220945201,6.324e-05,127.28,127.27,29.27320226]
[1742220945385,6.324e-05,127.28,127.27,226.18072828]
[1742220945809,28.67155598,127.35,127.27,226.18072828]
[1742220945810,0.03,127.35,127.31,28.64155598]
[1742220946008,20.0,127.33,127.32,27.4897]
[1742220946205,0.03,127.35,127.32,27.4897]
[1742220946206,0.03,127.35,127.33,0.42648471]
[1742220946393,0.03,127.35,127.34,28.64155598]
[1742220946594,0.03,127.35,127.34,100.88145712]
[1742220946928,0.03,127.35,127.34,72.23990114]
[1742220947093,28.67155598,127.35,127.34,72.23990114]
[1742220947710,20.0,127.32,127.31,7.8545]
[1742220948310,0.03,127.35,127.32,0.56864628]
[1742220948518,20.0,127.33,127.32,0.56864628]
[1742220949195,20.0,127.33,127.32,72.80854742]
[1742220949394,20.0,127.33,127.32,72.23990114]
[1742220949601,19.0,127.33,127.32,72.23990114]
[1742220950016,28.64155598,127.34,127.32,72.23990114]
[1742220950310,28.64155598,127.33,127.32,72.23990114]
[1742220950518,0.03,127.35,127.32,7.8542]
[1742220950809,28.64155598,127.34,127.32,7.8542]
[1742220951519,28.64155598,127.33,127.32,7.8542]
[1742220951689,28.64155598,127.34,127.32,7.8542]
[1742220952089,0.03,127.35,127.32,99.72960114]
[1742220953218,20.0,127.34,127.32,99.72960114]
[1742220953815,20.0,127.33,127.32,80.09410114]
[1742220954113,48.64155598,127.33,127.3,72.23990114]
[1742220954315,28.64155598,127.31,127.3,72.23990114]
[1742220954513,28.64155598,127.32,127.3,80.09530114]
[1742220954706,20.0,127.33,127.3,80.09530114]
[1742220954906,48.64155598,127.33,127.3,80.09530114]
[1742220955214,28.64155598,127.31,127.3,80.09530114]
[1742220955800,28.64155598,127.31,127.3,72.23990114]
[1742220956720,20.0,127.29,127.28,80.09630114]
[1742220956911,48.64155598,127.29,127.27,7.9201]
[1742220957112,28.64155598,127.28,127.27,80.16000114]
[1742220957498,28.64155598,127.28,127.27,72.30290114]
[1742220958103,28.64155598,127.28,127.27,0.063]
[1742220959024,28.64155598,127.29,127.27,0.063]
[1742220959407,20.0,127.29,127.27,0.063]
[1742220959725,20.0,127.28,127.27,0.063]
[1742220960512,20.0,127.28,127.27,80.16020114]
[1742220961310,28.64155598,127.28,127.27,80.16020114]
[1742220961829,28.64155598,127.28,127.27,72.30290114]
[1742220962029,28.64155598,127.28,127.27,80.16020114]
[1742220963522,20.0,127.3,127.27,99.80340114]
[1742220963523,48.64155598,127.3,127.27,99.80340114]
[1742220964240,28.64155598,127.29,127.27,99.80340114]
[1742220964533,20.0,127.31,127.27,99.80340114]
[1742220964835,20.0,127.28,127.27,99.80340114]
[1742220965214,20.0,127.29,127.27,99.80340114]
[1742220965436,28.64155598,127.29,127.27,99.80340114]
[1742220965817,20.0,127.28,127.27,99.80340114]
[1742220967614,20.0,127.28,127.27,80.16020114]
[1742220967814,48.64155598,127.28,127.27,80.16020114]
[1742220968015,48.64155598,127.28,127.27,72.30290114]
[1742220968228,48.64155598,127.28,127.27,0.063]
[1742220968429,73.44820484,127.28,127.25,0.063]
[1742220968622,20.0,127.23,127.21,91.95530114]
[1742220968817,28.64155598,127.23,127.21,99.81630114]
[1742220969028,28.64155598,127.23,127.21,80.16390114]
[1742220969531,28.64155598,127.22,127.21,80.16390114]
[1742220970037,48.64155598,127.23,127.21,80.16390114]
[1742220970411,28.64155598,127.22,127.21,72.30290114]
[1742220970617,28.64155598,127.22,127.21,0.063]
[1742220971419,20.0,127.22,127.21,0.063]
[1742220971739,28.64155598,127.24,127.21,0.063]
[1742220972116,28.64155598,127.23,127.21,0.063]
[1742220972527,28.64155598,127.22,127.21,0.063]
[1742220973919,20.0,127.22,127.21,0.063]
[1742220974122,28.64155598,127.22,127.21,0.063]
[1742220974516,20.0,127.23,127.21,0.063]
[1742220974929,7.85416597,127.27,127.21,0.063]
[1742220975134,28.64155598,127.27,127.22,28.64155598]
[1742220975311,28.64155598,127.27,127.23,27.5091]
[1742220975519,6.46138072,127.3,127.24,28.64155598]
[1742220975741,28.64155598,127.29,127.24,28.64155598]
[1742220976639,28.64155598,127.27,127.23,27.5091]
[1742220976845,28.64155598,127.25,127.24,72.23990114]
[1742220977143,48.64155598,127.26,127.23,7.8597]
[1742220977437,20.0,127.26,127.24,28.64155598]
[1742220977730,20.0,127.27,127.23,56.15065598]
[1742220978130,20.0,127.26,127.24,28.64155598]
[1742220978515,20.0,127.26,127.23,27.5091]
[1742220978717,48.64155598,127.27,127.23,27.5091]
[1742220978917,20.0,127.27,127.23,27.5091]
[1742220979317,28.64155598,127.28,127.23,27.5091]
[1742220979318,28.64155598,127.26,127.23,7.8597]
[1742220979523,28.64155598,127.24,127.22,80.10010114]
[1742220979721,28.64155598,127.23,127.21,0.063]
[1742220979931,28.64155598,127.26,127.21,0.063]
[1742220979932,28.64155598,127.22,127.21,0.063]
[1742220982134,55.15150484,127.22,127.21,0.063]
[1742220982639,47.29120484,127.22,127.21,0.063]
[1742220983017,28.64155598,127.22,127.21,0.063]
[1742220983246,20.0,127.22,127.21,0.063]
[1742220983439,28.64155598,127.23,127.21,0.063]
[1742220983744,48.64155598,127.22,127.21,0.063]
[1742220984837,67.29120484,127.22,127.21,0.063]
[1742220986243,75.15150484,127.22,127.21,0.063]
[1742220986456,75.29366641,127.22,127.21,0.063]
[1742220986747,18.79181043,127.21,127.2,0.063]
[1742220986946,47.43336641,127.21,127.2,0.063]
[1742220988023,84.3624071,127.21,127.2,0.063]
[1742220988249,84.3624071,127.21,127.19,0.063]
[1742220988449,57.42527353,127.2,127.19,0.063]
[1742220989261,28.78371755,127.2,127.19,0.063]
[1742220989953,28.64155598,127.2,127.19,0.063]
[1742220990138,48.64155598,127.2,127.19,0.063]
[1742220991443,67.29120484,127.2,127.19,0.063]
[1742220991854,67.43336641,127.2,127.19,0.063]
[1742220992053,75.29496641,127.2,127.19,0.063]
[1742220992256,103.93652239,127.2,127.19,0.063]
[1742220992466,25.79719514,127.19,127.18,0.063]
[1742220992675,25.79719514,127.19,127.14,0.063]
[1742220992676,20.0,127.16,127.14,0.063]
[1742220992979,28.64155598,127.15,127.14,0.063]
[1742220994475,36.50625598,127.15,127.14,0.063]
[1742220994881,55.29806641,127.15,127.14,0.063]
[1742220997451,55.15590484,127.15,127.14,0.063]
[1742220997647,55.29806641,127.15,127.14,0.063]
[1742221000071,55.79806641,127.15,127.14,0.063]
[1742221000678,55.79806641,127.15,127.08,72.23990114]
[1742221000679,20.0,127.12,127.08,72.23990114]
[1742221000860,28.64155598,127.09,127.08,72.23990114]
[1742221001876,20.0,127.07,127.06,0.063]
[1742221002181,48.64155598,127.07,127.06,0.063]
[1742221003184,0.28432314,127.06,127.03,0.063]
[1742221003376,28.64155598,127.04,127.03,0.063]
[1742221005076,20.0,127.04,127.03,0.063]
[1742221005275,28.64155598,127.07,127.03,0.063]
[1742221005854,28.64155598,127.05,127.03,0.063]
[1742221006259,28.64155598,127.04,127.03,0.063]
[1742221006475,20.0,127.06,127.03,0.063]
[1742221006658,48.64155598,127.06,127.03,0.063]
[1742221007256,28.64155598,127.07,127.03,0.063]
[1742221007672,28.64155598,127.08,127.03,72.30290114]
[1742221007880,48.64155598,127.09,127.03,100.94445712]
[1742221008070,48.64155598,127.09,127.04,28.64155598]
[1742221008273,28.64155598,127.1,127.05,6.2205]
[1742221008583,28.64155598,127.06,127.04,72.23990114]
[1742221008783,28.64155598,127.06,127.05,7.8709]
[1742221009585,25.01957072,127.11,127.05,7.8709]
[1742221009886,28.64155598,127.07,127.05,7.8709]
[1742221010058,28.64155598,127.06,127.05,7.24135781]
[1742221010259,28.64155598,127.06,127.04,72.23990114]
[1742221010260,28.64155598,127.06,127.04,80.11120114]
[1742221010462,28.64155598,127.05,127.04,80.11120114]
[1742221010780,57.28311196,127.05,127.03,0.063]
[1742221010968,28.64155598,127.04,127.03,0.063]
[1742221011361,1.72856157,127.08,127.03,0.063]
[1742221011565,28.64155598,127.05,127.03,0.063]
[1742221013072,48.64155598,127.04,127.03,0.063]
[1742221014269,67.29120484,127.04,127.03,0.063]
[1742221014777,48.64155598,127.04,127.03,0.063]
[1742221016296,67.29120484,127.04,127.03,0.063]
[1742221017369,67.57552798,127.04,127.03,0.063]
[1742221019889,48.64155598,127.04,127.03,0.063]
[1742221020201,28.64155598,127.05,127.03,0.063]
[1742221020371,48.64155598,127.04,127.03,0.063]
[1742221020577,28.64155598,127.05,127.03,0.063]
[1742221021178,1.5864,127.08,127.03,0.063]
[1742221021380,6.36992186,127.11,127.03,0.063]
[1742221021582,28.64155598,127.07,127.03,72.30290114]
[1742221021791,28.64155598,127.08,127.03,29.13104069]
[1742221021992,28.64155598,127.09,127.03,28.70455598]
[1742221022499,20.0,127.06,127.03,28.70455598]
[1742221022898,6.34940588,127.11,127.03,0.063]
[1742221023198,24.22808998,127.12,127.03,0.063]
[1742221023199,28.64155598,127.09,127.03,137.05695598]
[1742221023371,28.64155598,127.07,127.03,108.4154]
[1742221023572,20.0,127.07,127.03,88.7351]
[1742221023776,28.64155598,127.05,127.03,88.7351]
[1742221023996,20.0,127.07,127.03,88.7351]
[1742221023997,28.64155598,127.06,127.03,88.7351]
[1742221024386,20.0,127.09,127.03,117.37665598]
[1742221024584,48.64155598,127.09,127.04,28.64155598]
[1742221024781,20.22524886,127.12,127.05,28.64155598]
[1742221025000,28.64155598,127.11,127.06,56.18745598]
[1742221025191,28.64155598,127.11,127.06,27.5459]
[1742221025498,3.93893972,127.14,127.08,28.64155598]
[1742221025701,28.64155598,127.13,127.08,109.44155598]
[1742221026909,6.34842851,127.17,127.1,28.64155598]
[1742221027196,6.34842851,127.17,127.12,28.64155598]
[1742221027197,28.64155598,127.17,127.12,28.64155598]
[1742221027398,4.02913794,127.19,127.12,28.64155598]
[1742221027604,20.0,127.14,127.12,28.64155598]
[1742221027794,20.0,127.14,127.12,80.8]
[1742221028106,48.64155598,127.16,127.12,80.8]
[1742221028277,20.0,127.14,127.12,80.8]
[1742221028677,20.0,127.17,127.12,109.44155598]
[1742221029279,20.0,127.16,127.14,7.8651]
[1742221029478,20.0,127.16,127.14,88.6651]
[1742221029786,20.0,127.17,127.15,28.64155598]
[1742221030001,0.03,127.19,127.16,29.21020226]
[1742221030321,20.03,127.19,127.16,186.81791278]
[1742221030616,28.64155598,127.18,127.16,186.81791278]
[1742221031187,28.64155598,127.17,127.16,186.81791278]
[1742221031589,28.64155598,127.17,127.12,88.6664]
[1742221031785,36.53375598,127.19,127.12,80.8]
[1742221031786,20.0,127.16,127.12,80.8]
[1742221032006,20.0,127.1,127.05,193.08461278]
[1742221032305,28.64155598,127.08,127.05,87.0667]
[1742221033008,28.64155598,127.07,127.05,87.0667]
[1742221034078,48.64155598,127.06,127.05,6.2667]
[1742221034511,18.64964886,127.05,127.03,0.063]
[1742221034698,28.64155598,127.04,127.03,0.063]
[1742221034894,47.29120484,127.04,127.03,0.063]
[1742221035104,55.16270484,127.04,127.03,0.063]
[1742221035299,55.73135112,127.04,127.03,0.063]
[1742221036013,20.0,127.01,126.95,88.6769]
[1742221036187,28.64155598,127.0,126.95,88.6769]
[1742221036383,28.64155598,126.98,126.95,88.6769]
[1742221036992,20.0,127.01,126.95,88.6769]
[1742221036993,28.64155598,127.0,126.95,88.6769]
[1742221037415,28.64155598,126.99,126.95,88.6769]
[1742221038220,28.64155598,126.98,126.95,80.8]
[1742221038691,28.64155598,126.96,126.95,80.8]
[1742221038894,28.64155598,126.98,126.95,80.8]
[1742221039092,28.64155598,126.98,126.95,88.6769]
[1742221039601,20.0,126.99,126.95,88.6769]
[1742221039911,20.0,126.99,126.95,117.31845598]
[1742221040116,48.64155598,126.99,126.95,88.6769]
[1742221040291,20.0,126.99,126.95,88.6769]
[1742221040492,20.0,126.99,126.95,117.31845598]
[1742221040687,20.0,126.99,126.95,108.3696]
[1742221041003,20.0,126.99,126.95,137.01115598]
[1742221041241,28.64155598,127.0,126.97,7.8758]
[1742221041403,48.64155598,127.01,126.97,7.8758]
[1742221041719,20.0,127.0,126.97,137.00695598]
[1742221041915,18.64964886,127.04,126.97,137.00695598]
[1742221041916,20.0,127.01,126.99,28.64155598]
[1742221042313,20.0,127.01,126.98,29.21020226]
[1742221042497,20.0,127.01,126.99,28.64155598]
[1742221042919,28.64155598,127.04,126.99,28.64155598]